Cogmind - Beta 15 @@@ ROGUE MODE // 2025.07.14 @ 10:20:46 Player: Rockstar Result: Destroyed by G-47 Trooper with Particle Gun Performance ------------- Evolutions (2) 1000 Regions Visited (4) 800 Robots Destroyed (31) 155 Value Destroyed (907) 907 Prototype IDs (1) 20 Alien Tech Used (0) 0 Bonus (0) 0 TOTAL SCORE: 2882 Bonus ------- None Cogmind --------- Core Integrity 0/550 Matter 245/300 Energy 58/100 System Corruption 0% Temperature Cool (9) Movement Rolling (95) Ox1 Location -8/Materials Parts ------- > --- POWER (2) -------- (None) > --- PROPULSION (2) --- Light Treads Wheel > --- UTILITY (5) ------ Improved Signal Interpreter Light Armor Plating Hardened Medium Armor Plating > --- WEAPON (2) ------- Katana > --- INVENTORY (5) ---- Thermal Generator Improved Heat Sink Improved Terrain Scanner Field Recycling Unit (0) Plasma Cutter Peak State ------------ > --- POWER ------------ Light Ion Engine > --- PROPULSION ------- Improved Aluminum Leg VSS Leg > --- UTILITY ---------- Thermal Generator Improved Signal Interpreter Improved Terrain Scanner Targeting Computer Improved Propulsion Shielding > --- WEAPON ----------- Shotgun Katana > --- INVENTORY -------- Wheel Field Recycling Unit Plasma Cutter [Rating: 24] Favorites ----------- Power Ion Engine Engine Ion Engine Power Core Light Nuclear Core Propulsion Light Treads Treads Light Treads Leg Improved Aluminum Leg Wheel Wheel Utility Heat Sink Device Heat Sink Storage Small Storage Unit Processor Improved Signal Interpreter Protection Light Armor Plating Weapon Light EM Pulse Cannon Energy Gun EM Pulse Gun Energy Cannon Light EM Pulse Cannon Ballistic Gun Shotgun Ballistic Cannon Light Cannon Launcher Advanced EMP Blaster Special Weapon Plasma Cutter Slashing Weapon Katana Build | -11 -10 -9 -9 -8 ------- Run | Yrd Mat Mat Min Mat Slots Evolved 4 | . . 2 . 2 Power 1 | . . . . 1 Propulsion . | . . . . . Utility 3 | . . 2 . 1 Weapon . | . . . . . Parts Attached 43 | 6 3 2 4 28 Power 4 | 1 . . 1 2 Engine 2 | 1 . . . 1 Core 2 | . . . 1 1 Reactor . | . . . . . Propulsion 7 | 2 . . . 5 Treads 3 | 2 . . . 1 Leg 2 | . . . . 2 Wheel 2 | . . . . 2 Hover . | . . . . . Flight . | . . . . . Utility 18 | 1 1 . 3 13 Device 8 | . 1 . 2 5 Storage 1 | 1 . . . . Processor 3 | . . . . 3 Hackware . | . . . . . Protection 6 | . . . 1 5 Artifact . | . . . . . Weapon 14 | 2 2 2 . 8 Energy Gun 3 | 1 2 . . . Energy Cannon 2 | . . 2 . . Ballistic Gun 3 | 1 . . . 2 Ballistic Cannon 2 | . . . . 2 Launcher 2 | . . . . 2 Special Weapon 1 | . . . . 1 Impact Weapon . | . . . . . Slashing Weapon 1 | . . . . 1 Piercing Weapon . | . . . . . Special Melee Weapon . | . . . . . Unidentified Prototypes 1 | . . . . 1 Parts Lost 25 | . . . 1 24 Power 4 | . . . . 4 Propulsion 3 | . . . 1 2 Utility 9 | . . . . 9 Weapon 9 | . . . . 9 Highest Loss Streak 9 | . . . 1 9 To Critical Strikes . | . . . . . Average Backups 5 | . 4 5 7 4 Power . | . 1 1 1 . Propulsion . | . . . . . Utility . | . . . . 1 Weapon 3 | . 3 4 5 2 Tool/Special . | . . . . . Unused Backups 5 | . . . 3 2 Power 1 | . . . 1 . Propulsion . | . . . . . Utility 2 | . . . . 2 Weapon 2 | . . . 2 . Tool/Special . | . . . . . Average Slot Usage (%) 81 | . 88 77 88 73 Engine 9 | . 14 11 11 6 Core 2 | . . . . 5 Treads 14 | . 28 22 21 3 Leg 2 | . . . . 4 Wheel 1 | . . . . 3 Device 13 | . 3 11 16 14 Storage 8 | . 14 11 11 3 Processor 4 | . . . . 10 Protection 5 | . . . 5 7 Energy Gun 4 | . 24 15 . . Energy Cannon 10 | . . 6 22 4 Ballistic Gun 2 | . 3 . . 4 Slashing Weapon 1 | . . . . 2 Peak Build Rating 24 | 6 7 9 13 24 Average Rating 12 | 4 6 7 10 16 On Entrance 7 | . 6 7 9 13 Naked Turns . | . . . . . Heaviest Build 30 | 13 15 19 23 30 Greatest Support 40 | 40 40 40 40 25 Greatest Overweight (x) 4 | . . . 1 4 Average Overweight (x) . | . . . . . Largest Inventory Capacity 8 | 8 8 8 8 8 Average Capacity 7 | 7 8 8 8 6 Most Carried 8 | 2 5 8 8 8 Average Carried 5 | . 4 5 7 4 Final Capacity 8 | 8 8 8 8 5 Final Carried 8 | 2 5 8 8 5 Class Distribution -------------------- 73% | Mutant 26% | Scavenger-Mutant Dominant Class ---------------- Mutant | -10/Materials Mutant | -9/Materials Mutant | -9/Mines Scavenger-Mutant | -8/Materials Resources | -11 -10 -9 -9 -8 ----------- Run | Yrd Mat Mat Min Mat Matter Collected 756 | 205 85 20 40 406 Remotely . | . . . . . Salvage Created 1199 | . 148 . 403 648 Parts 60 | . 7 . 24 29 Haulers Intercepted . | . . . . . Recyclers Shooed . | . . . . . Parts Field Recycled . | . . . . . Retrieved Matter . | . . . . . Parts Self-Destructed . | . . . . . Prevented . | . . . . . Kills | -11 -10 -9 -9 -8 ------- Run | Yrd Mat Mat Min Mat Combat Hostiles Destroyed 24 | . 4 . 10 10 Melee 3 | . . . . 3 Guns 6 | . 2 . . 4 Cannons 9 | . . . 8 1 AOE 5 | . 1 . 2 2 Classes Destroyed 10 | . 1 . 2 7 Worker 2 | . . . . 2 Builder 2 | . . . . 2 Recycler 2 | . . . . 2 Watcher 1 | . . . . 1 Swarmer 5 | . . . 3 2 Grunt 12 | . 4 . 5 3 Brawler 3 | . . . 2 1 Specialist 2 | . . . . 2 Hunter 1 | . . . . 1 Heavy 1 | . . . . 1 Best Kill Streak 4 | . 2 . 3 4 Combat Bots Only 3 | . 2 . 3 2 Max Kills in Single Turn 1 | . 1 . 1 1 Gunslinging . | . . . . . Exploded 1 | . 1 . 1 1 Melee 1 | . . . . 1 Uniques/NPCs Destroyed . | . . . . . Combat | -11 -10 -9 -9 -8 -------- Run | Yrd Mat Mat Min Mat Hostile Shots Fired 221 | . 16 1 31 173 Missed 75 | . 5 1 7 62 Hits 146 | . 11 . 24 111 Melee 12 | . . . 2 10 Projectile 134 | . 11 . 22 101 Critical Strikes 9 | . . . . 9 Damage Taken 2704 | . 141 . 304 2259 Core 614 | . 21 . 32 561 Absorbed by Shields . | . . . . . Redirected to Shielding 104 | . . . . 104 Core Remaining (%) 94 | 100 91 . 92 . Volleys Fired 64 | . 9 . 19 36 Largest 2 | . 2 . 2 2 Hottest 112 | . 80 . 112 112 Shots Fired 113 | . 18 . 34 61 Gun 54 | . 18 . . 36 Cannon 55 | . . . 34 21 Launcher 4 | . . . . 4 Special . | . . . . . Kinetic 38 | . . . . 38 Thermal . | . . . . . Explosive 4 | . . . . 4 Electromagnetic 71 | . 18 . 34 19 Robot Hit Streak 12 | . 7 . 9 12 Robot Miss Streak 3 | . 2 . 1 3 Penetration Max . | . . . . . Secondary Targets . | . . . . . Shots Hit Robots 104 | . 13 . 26 65 Core Hits 47 | . 5 . 11 31 Critical Kills . | . . . . . Critical Parts Destroyed . | . . . . . Critical Strikes 3 | . 1 . . 2 Corrupt 1 | . 1 . . . Sever 2 | . . . . 2 Melee Attacks 21 | . . . . 21 Impact . | . . . . . Slashing 21 | . . . . 21 Piercing . | . . . . . Sneak Attacks 2 | . . . . 2 Combat Hostiles . | . . . . . Follow-up Attacks . | . . . . . Damage Inflicted 2565 | . 254 . 643 1668 Guns 708 | . 174 . . 534 Cannons 852 | . . . 548 304 Explosions 458 | . 80 . 95 283 Melee 547 | . . . . 547 Ramming . | . . . . . Kinetic 610 | . . . . 610 Thermal 239 | . 80 . 95 64 Explosive 219 | . . . . 219 Electromagnetic 950 | . 174 . 548 228 Impact . | . . . . . Slashing 547 | . . . . 547 Piercing . | . . . . . Highest Corruption 1 | . 1 . . . Average Corruption 1 | . 1 . . . Corruption Purged . | . . . . . Corruption Blocked . | . . . . . Effects 1 | . 1 . . . Heat Flow Errors 1 | . 1 . . . Overload Shots . | . . . . . Overflow Damage 50 | . . . . 50 Projectiles . | . . . . . Explosions 8 | . . . . 8 Melee 42 | . . . . 42 Knockbacks . | . . . . . Impact . | . . . . . Kinetic . | . . . . . Secondary . | . . . . . Self-Inflicted Damage 73 | . 18 . 23 32 Shots 3 | . 1 . 1 1 Rammed . | . . . . . Targets Rammed . | . . . . . Kicked . | . . . . . Crushed . | . . . . . Highest Temperature 373 | . 373 . 48 30 Average Temperature 63 | . 150 . 15 13 Received Heat Transfer 738 | . 66 . 69 603 Siege Activations . | . . . . . Martial Activations . | . . . . . Shielding Activations . | . . . . . Robots Disrupted . | . . . . . Combat Hostiles . | . . . . . Robots Corrupted 1 | . 1 . . . Combat Hostiles 1 | . 1 . . . Parts Fried 3 | . 1 . 2 . Impact Corruptions . | . . . . . Robots Melted . | . . . . . Combat Hostiles . | . . . . . Parts Melted . | . . . . . Heat Transferred 250 | . 50 . 150 50 Parts Sabotaged . | . . . . . Parts Stolen . | . . . . . Parts Stripped . | . . . . . Power Chain Reactions 4 | . 1 . 2 1 Alert | -11 -10 -9 -9 -8 ------- Run | Yrd Mat Mat Min Mat Maximum Alert Level . | . . . . . Low Security (%) 100 | 100 100 100 100 100 Level 1 . | . . . . . Level 2 . | . . . . . Level 3 . | . . . . . Level 4 . | . . . . . Level 5 . | . . . . . High Security . | . . . . . Max Security . | . . . . . Peak Influence 83 | . 82 34 73 83 Initial 34 | . . 34 . 17 Average 20 | . 17 11 22 23 Influence Increases 712 | . 102 . 246 364 Destroy 0b10 Robot/C 480 | . 80 . 200 200 Destroy 0b10 Robot/NC 35 | . . . . 35 Destroy Leader 112 | . 20 . 40 52 Disable Machine 15 | . . . . 15 Destroy Structure 40 | . 2 . 6 32 Partial Spotted 15 | . . . . 15 Lose Combat Pursuer 15 | . . . . 15 Influence Decreases 692 | . 20 82 201 389 Entered New Map 76 | . . 48 . 28 Time Decay 425 | . 20 34 191 180 Lost Part 125 | . . . 10 115 Purge Threat 66 | . . . . 66 Squads Dispatched 8 | . 2 . . 6 Investigation 3 | . 2 . . 1 Extermination . | . . . . . Reinforcement 5 | . . . . 5 Assault . | . . . . . Garrison . | . . . . . Intercept . | . . . . . Searches Triggered . | . . . . . Construction Impeded 1 | . . . . 1 Haulers Reinforced . | . . . . . Active Scanning Responses . | . . . . . Cargo Convoy Interrupts . | . . . . . Stealth | -11 -10 -9 -9 -8 --------- Run | Yrd Mat Mat Min Mat Distress Signals 1 | . . . . 1 Communications Jammed . | . . . . . Distress Signals . | . . . . . Times Spotted 43 | . 4 4 10 25 Peak Tracking Total 10 | . 2 3 3 10 Tactical Retreats 1 | . . . . 1 Traps | -11 -10 -9 -9 -8 ------- Run | Yrd Mat Mat Min Mat Traps Triggered 3 | . 2 . . 1 Indirectly . | . . . . . Trap Hack Attempts . | . . . . . Triggered . | . . . . . Disarmed . | . . . . . Reprogrammed . | . . . . . Reused . | . . . . . Traps Extracted . | . . . . . Installed . | . . . . . Triggered . | . . . . . Machines | -11 -10 -9 -9 -8 ---------- Run | Yrd Mat Mat Min Mat Machines Disabled 1 | . . . . 1 Max in Single Turn 1 | . . . . 1 Machines Repaired . | . . . . . Machines Dismantled 1 | . . . . 1 Machines Sabotaged . | . . . . . Overloaded Fab Kills . | . . . . . Hacking | -11 -10 -9 -9 -8 --------- Run | Yrd Mat Mat Min Mat Machines Accessed 2 | . 1 . . 1 Terminals 2 | . 1 . . 1 Fabricators . | . . . . . Repair Stations . | . . . . . Recycling Units . | . . . . . Scanalyzers . | . . . . . Garrison Access . | . . . . . Total Hacks 7 | . 5 . . 2 Successful 3 | . 2 . . 1 Failed 4 | . 3 . . 1 Catastrophic 1 | . . . . 1 Database Lockouts . | . . . . . Manual 7 | . 5 . . 2 Terminals 7 | . 5 . . 2 Fabricators . | . . . . . Repair Stations . | . . . . . Recycling Units . | . . . . . Scanalyzers . | . . . . . Garrison Access . | . . . . . Terminal Hacks 2 | . 1 . . 1 Branch Access Points 1 | . 1 . . . Unreport Threat 1 | . . . . 1 Fabricator Hacks . | . . . . . Repair Station Hacks . | . . . . . Recycling Unit Hacks . | . . . . . Scanalyzer . | . . . . . Garrison Access Hacks . | . . . . . Unauthorized Hacks 1 | . 1 . . . Terminals 1 | . 1 . . . Track 1 | . 1 . . . Fabricators . | . . . . . Repair Stations . | . . . . . Recycling Units . | . . . . . Scanalyzers . | . . . . . Garrison Access . | . . . . . Data Cores Recovered . | . . . . . Used . | . . . . . Hacking Detections 2 | . 1 . . 1 Full Trace Events 2 | . 1 . . 1 Feedback Events 1 | . 1 . . . Corruption 1 | . 1 . . . Feedback Blocked . | . . . . . Robot Schematics Acquired . | . . . . . Robots Built . | . . . . . Authchips . | . . . . . Time . | . . . . . Total Robot Build Rating . | . . . . . Part Schematics Acquired . | . . . . . Parts Built . | . . . . . Authchips . | . . . . . Time . | . . . . . Total Part Build Rating . | . . . . . Parts Repaired . | . . . . . Time . | . . . . . Parts Recycled . | . . . . . Recycled Matter . | . . . . . Retrieved Matter . | . . . . . Retrieved Components . | . . . . . Parts Scanalyzed . | . . . . . Part Schematics Acquired . | . . . . . Parts Damaged . | . . . . . Bothacking | -11 -10 -9 -9 -8 ------------ Run | Yrd Mat Mat Min Mat Used RIF Installer . | . . . . . Robots Hacked . | . . . . . Non-combat . | . . . . . Combat . | . . . . . Robot Hacks Applied . | . . . . . Relay Couplers Released . | . . . . . Fabnet Peak Effective % . | . . . . . Robots Rewired . | . . . . . Allies Hacked . | . . . . . Hacks Repelled . | . . . . . Allies | -11 -10 -9 -9 -8 -------- Run | Yrd Mat Mat Min Mat Total Allies . | . . . . . Largest Group . | . . . . . Highest-Rated Group . | . . . . . Highest-Rated Ally . | . . . . . Total Orders . | . . . . . Ally Attacks . | . . . . . Total Damage . | . . . . . Kills . | . . . . . Allies Corrupted . | . . . . . Allies Melted . | . . . . . Intel | -11 -10 -9 -9 -8 ------- Run | Yrd Mat Mat Min Mat Active Infowar (turns) 388 | . . . . 388 Optics 86 | . . . . 86 Sensors 127 | . . . . 127 Terrain 258 | . . . . 258 Robot Analysis Total . | . . . . . Derelict Logs Recovered 1 | . . . 1 . Drone Launches . | . . . . . Drone Recoveries . | . . . . . Exploration | -11 -10 -9 -9 -8 ------------- Run | Yrd Mat Mat Min Mat Turns Passed 1574 | 66 157 125 589 637 Spaces Moved 705 | 37 75 76 240 277 Core 12 | 3 . . . 9 Treads 509 | 34 75 76 240 84 Legs 98 | . . . . 98 Wheels 86 | . . . . 86 Hover . | . . . . . Flight . | . . . . . Fastest Speed 50 | 50 160 160 160 80 Average Speed 154 | 151 160 160 163 143 Slowest Speed 250 | 160 160 160 240 250 Overloaded Moves . | . . . . . Propulsion Burnouts . | . . . . . Robots Hopped . | . . . . . Potential Cave-ins . | . . . . . Cave-ins Triggered . | . . . . . Exploration Rate (%) 23 | 4 18 12 55 30 Regions Visited 4 Branch Regions 1 Pre-discovered Areas 1 | . . . 1 . Known Exits Taken . | . . . . . Unknown Exits Taken 4 | 1 1 1 1 . Scrap Searched 2 | . . . 2 . Spaces Dug . | . . . . . Terrain Destroyed 55 | . 2 . 6 47 Melee . | . . . . . Projectile . | . . . . . AOE 55 | . 2 . 6 47 Terrain Rammed . | . . . . . Walls Destroyed . | . . . . . Machines Disabled . | . . . . . Actions | -11 -10 -9 -9 -8 --------- Run | Yrd Mat Mat Min Mat Total 1033 | 44 94 80 406 409 Wait 156 | . 3 . 134 19 Move 701 | 36 74 75 239 277 Hop . | . . . . . Pick Up 13 | 2 2 1 4 4 Fast Attach 34 | 6 3 2 2 21 Attach 12 | . . . . 12 Detach 12 | . 2 2 . 8 Swap 6 | . . . 2 4 Drop 10 | . 1 . 6 3 Fire 64 | . 9 . 19 36 Melee 21 | . . . . 21 Ram . | . . . . . Kick . | . . . . . Crush . | . . . . . Escape Stasis . | . . . . . Rewire . | . . . . . Trap . | . . . . . Miscellaneous 4 | . . . . 4 Route ------- -11/Scrapyard -10/Materials (discovered 2 exits: [*Mat] / Min) -9/Materials -9/Mines -8/Materials History --------- Turn | Location | Event 26 | -11/Scrapyard | Discovered new exit (range 16) 67 | -11/Scrapyard | Entered Materials 116 | -10/Materials | Identified exit to Mines 181 | -10/Materials | Discovered new exit (range 9) 224 | -10/Materials | Entered another Materials area 224 | -9/Materials | Evolved 2 slots: Utility x2 288 | -9/Materials | Discovered new exit (range 13) 326 | -9/Materials | Build established: Mutant 349 | -9/Materials | Entered Mines 351 | -9/Mines | Met a Derelict bent on vengeance 895 | -9/Mines | Found a hidden stash of uninstalled traps 903 | -9/Mines | Discovered new exit (range 9) 938 | -9/Mines | Entered Materials 938 | -8/Materials | Evolved 2 slots: Power x1, Utility x1 1226 | -8/Materials | Lost 9 parts (1p1n5u2w) 1283 | -8/Materials | Lost 5 parts (1p1u3w) 1389 | -8/Materials | Core integrity fell below 50% 1544 | -8/Materials | Core integrity fell below 20% 1566 | -8/Materials | Lost 3 parts (1p1n1u) 1575 | -8/Materials | Destroyed by G-47 Trooper with Particle Gun Last Messages --------------- Acquired Lgt. Armor Plating. Discarded Visual Processing Unit. U-05 Engineer lays Concrete. Critical hit (Burn: +37). Acquired Lgt. Armor Plating. U-05 Engineer lays Concrete. A-02 Transporter destroyed. U-05 Engineer lays Concrete. Dropped Imp. Aluminum Leg. U-05 Engineer lays Concrete. Acquired Lgt. Treads. R-06 Scavenger collects Weight Redist. System. Acquired Prototype Launcher. Identified Adv. EMP Blaster. R-06 Scavenger suffers critical hit (Burn). R-06 Scavenger collects Lgt. Treads. Critical hit (Burn: +37). Lgt. Armor Plating destroyed. B-36 Bruiser destroyed. Adv. EMP Blaster destroyed. Map ----- +----------------------------------------------------+ | ??????????????# """"""" # ######## #?????????? | | ??????????????# """"""" # ##?????# #?????????? | | ????????????## """"""" # #?#????# #?????????? | | # ??????????## %* / #??????# #?????????? | | # ################+#### ##?#???# #?????????? | | # % % #??????? +?????????? | | # #??????? #?????????? | | # #???????## #?????????? | | # "" #?????#??? ??????????? | | ?? "" """ """ #????????????????????? | | ?? "T [ """ """ ####???#?????????????? | | ?? "" /= "" """ """#?????????????????? | | ?? "" ] R"#?????????????????? | | """#?????????????????? | | ###??????????????????? | | ######## #??????#?????????????? | | ###????????# #????#???????????????? | | ???????????######## #????????????????????? | | ??????????????????# !#????????????????????? | | ?????????????? "??# =+ ???????????????????? | | ??????????????????+ = =%# ??????????????????? | | ??????????????????# []]!]=#????????????????????? | | ??????????????????# ]]gg!]#????????????????????? | | ??????????????????# ]]] #????????????????????? | | ??????????????????#######l #????????????????????? | | ??????????????? ????#// @ #????????????????????? | | ???????????? ???????#// t%g #????????????????????? | | ????????????????????#!! g g#????????????????????? | | ????????????????????#!! g #????????????????????? | | ????????????????????#!! #????????????????????? | | ????????????????????#!! rg ????????????????????? | | ????????????????????##### ???????????????????? | | ????????????????????#???# ???????????????????? | | ????????????????????????# ###??????????????????? | | ????????????????????????# #????????????????????? | | ???????????????????????? #????????????????????? | | ????????????????????????# #????????????????????? | | ????????????????????????? #????????????????????? | | ????????????????????????? #????????????????????? | | ????????????????????????? #????????????????????? | | ????????????????????????? ?????????????????????? | | ?????????????????????????????????????????????????? | | ?????????????????????????????????????????????????? | | ?????????????????????????????????????????????????? | | ?????????????????????????????????????????????????? | | ?????????????????????????????????????????????????? | | ?????????????????????????????????????????????????? | | ?????????????????????????????????????????????????? | | ?????????????????????????????????????????????????? | | ?????????????????????????????????????????????????? | +----------------------------------------------------+ Best States ------------- Heat Dissipation 61 Energy Generation 19 Energy Capacity 310 Matter Stores 300 Matter Capacity 300 Sight Range 18 Robot Scan Range 15 Terrain Scan Range 16 Terrain Scan Density 10 Armor Coverage 675 Propulsion Shielding 66 Evasion (%) 50 Targeting Accuracy 5 Recoil Reduction 2 Item Schematics ----------------- None Robot Schematics ------------------ None Fabricated ------------ Nothing Repaired ---------- Nothing Alien Tech Used ----------------- None Achievements -------------- None Challenges ------------ None Game ------ Seed LightAntimatterCloak Manual? 0 Play Time 00:20:23 Cumulative 74.9 hours Start 2025.07.14 @ 09:59:41 End 2025.07.14 @ 10:20:46 Sessions 1 Manual Loads 0 Difficulty Rogue Special Mode None Game No. 67 Rogue 64 Adventurer 1 Explorer 2 Win Type - Total 0 Types 0/0/0/0/0/0/0/0/0/0 Lore% 23 Gallery% 42 Achievement% 34 Wizard Run 0 Options --------- Layout 0 ASCII 0 Keyboard 0 Movement Mouse Keybinds 0 Fullscreen 2 Font 24/Smallcaps Map View 76x50 Zoom Use 2% Tactical HUD 0 Map Filters NONE Filters NONE Steam 1 RUN: 8a39fed8-ac3c-4e56-9738-0ab839d2053b